bitfinex/quotes_BTCUSD_20240719
["timestamp","ask_amount","ask_price","bid_price","bid_amount"]
[1721413992794,0.14114,66668.0,66667.0,0.009]
[1721413993026,0.00284,66668.0,66667.0,0.009]
[1721413993439,0.00284,66668.0,66667.0,0.13355645]
[1721413993874,0.00184,66668.0,66667.0,0.26025645]
[1721413994201,0.00184,66668.0,66667.0,0.42463819]
[1721413994202,0.00384,66668.0,66667.0,0.42463819]
[1721413994725,0.00284,66668.0,66667.0,0.42463819]
[1721413994888,0.00384,66668.0,66667.0,0.43363819]
[1721413995918,0.00384,66668.0,66667.0,0.58363719]
[1721413996327,0.00384,66668.0,66667.0,0.88362888]
[1721413996528,0.00384,66668.0,66667.0,1.43362688]
[1721413996743,0.00384,66668.0,66667.0,1.43362541]
[1721413996940,0.00384,66668.0,66667.0,1.48362541]
[1721413997319,0.01126013,66684.0,66676.0,0.1399]
[1721413997577,0.0636,66690.0,66680.0,0.2348]
[1721413997779,0.0782,66693.0,66681.0,0.12754777]
[1721413997780,0.01961251,66685.0,66681.0,0.12754777]
[1721413997992,0.0622,66694.0,66682.0,0.12454867]
[1721413998213,0.0622,66694.0,66683.0,0.12754759]
[1721413998549,0.0622,66694.0,66684.0,0.12454867]
[1721413998784,0.0622,66694.0,66685.0,0.12454867]
[1721413998992,0.0622,66694.0,66685.0,0.20434867]
[1721413999200,0.0622,66694.0,66685.0,0.57438731]
[1721413999401,0.0681,66699.0,66685.0,1.72111981]
[1721413999571,0.0681,66699.0,66685.0,1.42120281]
[1721413999572,0.01089783,66697.0,66685.0,1.42120281]
[1721414000212,0.0813,66693.0,66685.0,0.37452907]
[1721414000632,0.0813,66693.0,66685.0,0.12452907]
[1721414000837,0.0813,66693.0,66679.0,0.1418]
[1721414000838,0.02050574,66686.0,66684.0,0.001]
[1721414001042,0.01966611,66685.0,66684.0,0.001]
[1721414001458,0.00084,66686.0,66685.0,0.019]
[1721414001662,0.0205076,66686.0,66685.0,0.019]
[1721414002094,0.0205076,66686.0,66675.0,0.142]
[1721414002294,0.0196676,66685.0,66684.0,0.003]
[1721414002568,0.00084,66686.0,66684.0,0.014]
[1721414002735,0.00084,66686.0,66675.0,0.142]
[1721414002736,0.00084,66686.0,66685.0,0.12454113]
[1721414004251,0.00084,66686.0,66685.0,0.13554113]
[1721414004472,0.00084,66686.0,66685.0,0.12454113]
[1721414004631,0.00084,66686.0,66685.0,0.13254113]
[1721414004832,0.00084,66686.0,66685.0,0.13854113]
[1721414005073,0.00084,66686.0,66685.0,0.13254113]
[1721414005487,0.00084,66686.0,66685.0,0.14354113]
[1721414005687,0.00084,66686.0,66685.0,0.14353198]
[1721414006448,0.00084,66686.0,66685.0,0.019]
[1721414006995,0.00084,66686.0,66685.0,0.14353489]
[1721414007360,0.00084,66686.0,66685.0,0.019]
[1721414007488,0.00084,66686.0,66685.0,0.14353312]
[1721414007691,0.00084,66686.0,66685.0,0.019]
[1721414009789,0.13884,66686.0,66685.0,0.019]
[1721414010013,0.281567,66686.0,66685.0,0.019]
[1721414011305,0.281567,66686.0,66685.0,0.008]
[1721414011470,0.281567,66686.0,66685.0,0.005]
[1721414011672,0.120567,66686.0,66685.0,0.007]
[1721414011913,0.10084,66686.0,66685.0,0.002]
[1721414012115,0.10084,66686.0,66685.0,0.003]
[1721414012316,0.10484,66686.0,66685.0,0.001]
[1721414012519,0.00484,66686.0,66685.0,0.001]
[1721414012769,0.00884,66686.0,66685.0,0.002]
[1721414013165,0.00884,66686.0,66685.0,0.001]
[1721414014285,0.00084,66686.0,66680.0,0.1388]
[1721414014498,0.00484,66686.0,66681.0,0.12453252]
[1721414014698,0.00484,66686.0,66676.0,0.0448399]
[1721414014903,0.00484,66686.0,66677.0,0.12454063]
[1721414014904,0.1447,66685.0,66677.0,0.12454063]
[1721414017030,0.01961193,66684.0,66678.0,0.07717479]
[1721414017756,0.00184,66686.0,66678.0,0.07717479]
[1721414017971,0.0196383,66685.0,66678.0,0.07717479]
[1721414018595,0.02063822,66684.0,66678.0,0.07717479]
[1721414018805,0.01963822,66683.0,66678.0,0.07717479]
[1721414019225,0.002,66684.0,66678.0,0.07717479]
[1721414019438,0.01965883,66683.0,66678.0,0.07717479]
[1721414020301,0.02065883,66683.0,66672.0,0.2348]
[1721414020505,0.01965883,66682.0,66673.0,0.12454368]
[1721414020707,0.01965883,66682.0,66674.0,0.12454368]
[1721414020928,0.01965883,66682.0,66675.0,0.12454368]
[1721414021136,0.01965883,66682.0,66676.0,0.12454368]
[1721414021339,0.01965883,66682.0,66672.0,0.2348]
[1721414021570,0.01965883,66682.0,66673.0,0.37454401]
[1721414021769,0.01966165,66681.0,66678.0,0.07717479]
[1721414021922,0.001,66683.0,66678.0,0.07717479]
[1721414022123,0.01967398,66682.0,66678.0,0.07717479]
[1721414022330,0.001,66683.0,66678.0,0.07717479]
[1721414022532,0.01967391,66682.0,66678.0,0.07717479]
[1721414023149,0.00084,66686.0,66678.0,0.07717479]
[1721414023150,0.01967391,66681.0,66678.0,0.07717479]
[1721414023363,0.01967391,66680.0,66678.0,0.07717479]
[1721414023562,0.00084,66686.0,66678.0,0.07717479]
[1721414023925,0.001,66682.0,66678.0,0.07717479]
[1721414024042,0.01971231,66681.0,66678.0,0.07717479]
[1721414024244,0.01971231,66681.0,66679.0,0.1368]
[1721414025166,0.01971694,66680.0,66679.0,0.1368]
[1721414025397,0.00484,66686.0,66679.0,0.1368]
[1721414025398,0.01971694,66681.0,66679.0,0.1368]
[1721414025601,0.01971694,66680.0,66679.0,0.3878]
[1721414025808,0.01971694,66685.0,66679.0,0.3878]
[1721414026132,0.01971694,66685.0,66679.0,0.251]
[1721414026462,0.01971694,66685.0,66679.0,0.001]
[1721414027187,0.02071694,66685.0,66679.0,0.001]
[1721414027418,0.01971694,66684.0,66678.0,0.07717479]
[1721414027616,0.01971694,66684.0,66679.0,0.12654365]
[1721414027899,0.01971694,66684.0,66679.0,0.002]
[1721414028074,0.01971694,66684.0,66678.0,0.07717479]
[1721414028294,0.0617,66683.0,66679.0,0.12454365]
[1721414028487,0.0617,66683.0,66673.0,0.21537479]
[1721414028488,0.01971694,66682.0,66673.0,0.21537479]
[1721414028657,0.01971694,66682.0,66674.0,0.12454535]
[1721414028858,0.01971694,66682.0,66681.0,0.07717479]
[1721414029416,0.01971694,66683.0,66681.0,0.07717479]
[1721414029616,0.01971694,66682.0,66681.0,0.07717479]
[1721414029819,0.001,66684.0,66681.0,0.20171451]
[1721414029820,0.01971694,66683.0,66681.0,0.20171451]
[1721414030032,0.01971694,66682.0,66681.0,0.07717479]
[1721414030244,0.01971694,66682.0,66681.0,0.20171383]
[1721414030447,0.02071694,66682.0,66681.0,0.20171383]
[1721414030651,0.02071694,66682.0,66681.0,0.34661383]
[1721414031271,0.02071694,66682.0,66681.0,0.50099557]
[1721414031490,0.02071694,66682.0,66681.0,0.65096257]
[1721414031711,0.02067149,66682.0,66681.0,0.65096046]
[1721414032069,0.001,66682.0,66681.0,0.52642353]
[1721414032265,0.001,66682.0,66681.0,0.95089477]
[1721414033395,0.001,66682.0,66681.0,0.12453624]
[1721414034879,0.001,66682.0,66681.0,0.12453553]
[1721414035847,0.02072876,66682.0,66681.0,0.27450253]
[1721414037008,0.001,66682.0,66681.0,1.17155427]
[1721414037409,0.001,66682.0,66681.0,1.47148927]
[1721414038294,0.001,66682.0,66681.0,1.51641746]
[1721414038498,0.00084,66686.0,66685.0,0.891292]
[1721414038636,0.00084,66686.0,66685.0,1.1701981]
[1721414039201,0.00084,66686.0,66685.0,1.4049981]
[1721414039553,0.00084,66686.0,66685.0,1.9549151]
[1721414040186,0.00084,66686.0,66685.0,1.9639151]
[1721414040841,0.00084,66686.0,66685.0,1.83939074]
[1721414041044,0.00084,66686.0,66685.0,1.96391348]
[1721414041559,0.00084,66686.0,66685.0,1.97091348]
[1721414041780,0.00084,66686.0,66685.0,1.67099648]
[1721414042794,0.00084,66686.0,66685.0,1.71595694]
[1721414043020,0.00074,66686.0,66685.0,1.71595694]
[1721414043281,0.00074,66686.0,66685.0,1.67099648]
[1721414043428,0.14444,66686.0,66685.0,0.016]
[1721414043648,0.16408135,66686.0,66685.0,0.016]
[1721414045061,0.16408135,66686.0,66685.0,0.009]
[1721414045261,0.16408135,66686.0,66673.0,0.52026147]
[1721414045463,0.01964135,66685.0,66674.0,0.27892498]
[1721414045664,0.01964135,66685.0,66680.0,0.07717479]
[1721414045865,0.01964135,66685.0,66680.0,0.23155653]
[1721414046069,0.01964135,66685.0,66681.0,0.20583745]
[1721414046267,0.01964135,66685.0,66681.0,0.0813]
[1721414046429,0.01964135,66685.0,66682.0,0.12453597]
[1721414046628,0.01964135,66685.0,66680.0,0.23155653]
[1721414046629,0.08274135,66685.0,66680.0,0.23155653]
[1721414046894,0.01971245,66684.0,66681.0,0.12453637]
[1721414047101,0.01971245,66684.0,66680.0,0.23555653]
[1721414047275,0.00074,66686.0,66681.0,0.12453447]
[1721414047473,0.00074,66686.0,66682.0,0.20773447]
[1721414047700,0.00074,66686.0,66683.0,0.12453447]
[1721414048032,0.00074,66686.0,66684.0,0.12453447]
[1721414048236,0.00074,66686.0,66680.0,0.23155653]
[1721414048439,0.16009172,66685.0,66681.0,0.12553052]
[1721414048680,0.01969172,66684.0,66682.0,0.12853052]
[1721414048908,0.01969172,66684.0,66675.0,0.2174212]
[1721414048909,0.01969172,66684.0,66676.0,0.04496147]
[1721414049146,0.01969172,66684.0,66674.0,0.0674422]
[1721414049147,0.01969172,66684.0,66677.0,0.12453718]
[1721414049362,0.01969172,66684.0,66683.0,0.002]
[1721414049592,0.01969172,66684.0,66674.0,0.15438174]
[1721414049593,0.0623,66683.0,66674.0,0.15438174]
[1721414049829,0.01969172,66682.0,66681.0,0.004]
[1721414050058,0.01971256,66682.0,66681.0,0.004]
[1721414050285,0.01971256,66682.0,66674.0,0.15438174]
[1721414050286,0.01968044,66682.0,66674.0,0.15438174]
[1721414050508,0.01968044,66682.0,66675.0,0.12454443]
[1721414050782,0.01968044,66682.0,66676.0,0.12454443]
[1721414051010,0.01968044,66682.0,66677.0,0.12454443]
[1721414051229,0.01968044,66682.0,66674.0,0.15438174]
[1721414051452,0.01968044,66682.0,66675.0,0.12454443]
[1721414051685,0.01968044,66682.0,66677.0,0.005]
[1721414051902,0.01968044,66682.0,66674.0,0.15838174]
[1721414052155,0.01968044,66682.0,66675.0,0.12454443]
[1721414052338,0.01968044,66682.0,66677.0,0.007]
[1721414052512,0.01968044,66682.0,66674.0,0.15938174]
[1721414052846,0.01968044,66682.0,66675.0,0.13154637]
[1721414053053,0.01968044,66682.0,66676.0,0.12454637]
[1721414053345,0.0623,66683.0,66676.0,0.12454637]
[1721414053605,0.01964766,66682.0,66675.0,0.012]
[1721414053822,0.0623,66683.0,66675.0,0.012]
[1721414054030,0.0623,66683.0,66679.0,0.07717479]
[1721414054031,0.01964765,66682.0,66679.0,0.07717479]
[1721414055020,0.00074,66686.0,66681.0,0.2348]
[1721414055338,0.01966107,66685.0,66681.0,0.2348]
[1721414056476,0.01966107,66685.0,66679.0,0.23155653]
[1721414056707,0.01967893,66684.0,66681.0,0.004]
[1721414056907,0.01967893,66683.0,66681.0,0.004]
[1721414057056,0.00074,66686.0,66681.0,0.004]
[1721414057057,0.01967893,66682.0,66681.0,0.004]
[1721414057258,0.01967893,66685.0,66681.0,0.005]
[1721414057461,0.00074,66686.0,66681.0,0.005]
[1721414057462,0.01967893,66684.0,66681.0,0.005]
[1721414057628,0.01967893,66683.0,66681.0,0.005]
[1721414057826,0.01967893,66682.0,66681.0,0.001]
[1721414058524,0.01967893,66682.0,66675.0,0.2348]
[1721414058724,0.01967893,66681.0,66676.0,0.27892376]
[1721414058970,0.00074,66686.0,66681.0,0.003]
[1721414058971,0.1439,66684.0,66681.0,0.003]
[1721414059168,0.04266838,66683.0,66681.0,0.003]
[1721414059446,0.02068686,66682.0,66681.0,0.007]
[1721414059667,0.01966838,66682.0,66681.0,0.007]
[1721414059868,0.01966838,66682.0,66675.0,0.005]
[1721414060191,0.01966838,66682.0,66671.0,0.07717479]
[1721414060398,0.01966838,66682.0,66672.0,0.12454898]
[1721414060783,0.0819,66680.0,66673.0,0.12454898]
[1721414060913,0.01966838,66679.0,66671.0,0.07717479]
[1721414061155,0.01966838,66679.0,66672.0,0.12455335]
[1721414061329,0.01966838,66679.0,66676.0,0.008]
[1721414062149,0.01966838,66679.0,66671.0,0.07717479]
[1721414062378,0.01966838,66679.0,66675.0,0.001]
[1721414062577,0.02066838,66679.0,66675.0,0.001]
[1721414062783,0.01966838,66678.0,66675.0,0.001]
[1721414062990,0.001,66679.0,66675.0,0.001]
[1721414063192,0.001,66679.0,66671.0,0.07717479]
[1721414063193,0.01969031,66678.0,66671.0,0.07717479]
[1721414063397,0.00101848,66677.0,66671.0,0.07717479]
[1721414063607,0.01969031,66676.0,66671.0,0.07717479]
[1721414063807,0.01969031,66675.0,66671.0,0.07717479]
[1721414064009,0.01969031,66674.0,66671.0,0.07717479]
[1721414064212,0.01969031,66673.0,66671.0,0.07717479]
[1721414064412,0.01969031,66672.0,66671.0,0.07717479]
[1721414065348,0.01969031,66672.0,66671.0,0.08217479]
[1721414065549,0.01969031,66672.0,66671.0,0.07717479]
[1721414065756,0.01969031,66672.0,66671.0,0.08417479]
[1721414066072,0.002,66679.0,66665.0,0.07717479]
[1721414066073,0.0753,66671.0,66665.0,0.07717479]
[1721414066281,0.0666,66670.0,66666.0,0.00177552]
[1721414066556,0.0666,66670.0,66660.0,0.4753]
[1721414066557,0.01975283,66669.0,66661.0,0.00177552]
[1721414066768,0.01975283,66669.0,66664.0,0.07717479]
[1721414066769,0.00101848,66669.0,66664.0,0.07717479]
[1721414066996,0.01975327,66668.0,66664.0,0.07717479]
[1721414067228,0.01975327,66667.0,66664.0,0.07717479]
[1721414067476,0.0666,66670.0,66664.0,0.07717479]
[1721414067711,0.02082692,66669.0,66664.0,0.07717479]
[1721414067961,0.01980844,66668.0,66664.0,0.07717479]
[1721414068202,0.01980844,66667.0,66664.0,0.07717479]
[1721414068449,0.0666,66670.0,66664.0,0.07717479]
[1721414068450,0.0666,66670.0,66665.0,0.006]
[1721414068714,0.02083422,66669.0,66665.0,0.006]
[1721414068948,0.01981574,66668.0,66665.0,0.006]
[1721414069185,0.01981574,66667.0,66665.0,0.006]
[1721414069386,0.0666,66670.0,66664.0,0.08117479]
[1721414069722,0.00101848,66669.0,66664.0,0.004]
[1721414070200,0.00101848,66669.0,66665.0,0.001]
[1721414070201,0.02401848,66669.0,66665.0,0.001]
[1721414070944,0.00101848,66667.0,66665.0,0.001]
[1721414071181,0.12401848,66667.0,66665.0,0.001]
[1721414071645,0.12401848,66667.0,66657.0,0.07717479]
[1721414071909,0.12401848,66667.0,66664.0,0.001]
[1721414072107,0.12401848,66667.0,66665.0,0.003]
[1721414072380,0.12401848,66667.0,66665.0,0.008]
[1721414072875,0.12401848,66667.0,66658.0,0.00177552]
[1721414073103,0.12401848,66667.0,66657.0,0.08517479]
[1721414073331,0.12401848,66667.0,66658.0,0.00177552]
[1721414074239,0.12401848,66667.0,66657.0,0.08017479]
[1721414074581,0.12401848,66667.0,66665.0,0.005]
[1721414074786,0.12401848,66667.0,66657.0,0.07717479]
[1721414074981,0.12401848,66667.0,66665.0,0.003]
[1721414075409,0.12401848,66667.0,66666.0,0.07717479]
[1721414075410,0.1,66667.0,66666.0,0.07717479]
[1721414075831,0.15438174,66679.0,66667.0,0.00177552]
[1721414075832,0.0607,66677.0,66667.0,0.00177552]
[1721414076061,0.00101848,66675.0,66667.0,0.00177552]
[1721414076815,0.01116433,66679.0,66673.0,0.21997479]
[1721414077015,0.00837,66695.0,66680.0,0.07717479]
[1721414077016,0.0659,66693.0,66680.0,0.07717479]
[1721414077399,0.0659,66693.0,66681.0,0.0763]
[1721414077400,0.01166663,66686.0,66681.0,0.0763]
[1721414077605,0.00074,66686.0,66681.0,0.141]
[1721414078626,0.00574,66686.0,66681.0,0.141]
[1721414078831,0.00574,66686.0,66682.0,0.00299901]
[1721414079239,0.00774,66686.0,66682.0,0.00299901]
[1721414079437,0.00774,66686.0,66681.0,0.141]
[1721414080407,0.00774,66686.0,66683.0,0.2348]
[1721414080670,0.00774,66686.0,66685.0,0.449875]
[1721414080913,0.00774,66686.0,66685.0,0.60425674]
[1721414081373,0.00074,66686.0,66685.0,0.60425674]
[1721414082778,0.00074,66686.0,66685.0,0.15438174]
[1721414083004,0.00074,66686.0,66681.0,0.141]
[1721414083711,0.00074,66686.0,66677.0,0.066]
[1721414083942,0.00074,66686.0,66677.0,0.22038174]
[1721414084886,0.00074,66686.0,66681.0,0.07717479]
[1721414085156,0.00074,66686.0,66682.0,0.15438174]
[1721414085386,0.00074,66686.0,66682.0,0.30434674]
[1721414085853,0.00074,66686.0,66683.0,0.12451586]
[1721414086097,0.00074,66686.0,66684.0,0.2788976]
[1721414086334,0.00074,66686.0,66684.0,0.15438174]
[1721414087799,0.00074,66686.0,66681.0,0.37710779]
[1721414087800,0.00074,66686.0,66681.0,0.149967]
[1721414088032,0.00074,66686.0,66682.0,0.15438174]
[1721414089875,0.00074,66686.0,66682.0,0.30434674]
[1721414091248,0.00074,66686.0,66682.0,0.45431174]
[1721414091470,0.00074,66686.0,66685.0,0.149958]
[1721414091734,0.00074,66686.0,66685.0,0.30433974]
[1721414091970,0.00074,66686.0,66685.0,0.3073384]
[1721414092177,0.00074,66686.0,66685.0,0.60425674]
[1721414092736,0.00074,66686.0,66685.0,0.90417374]
[1721414092954,0.00074,66686.0,66685.0,1.20409074]
[1721414093177,0.00074,66686.0,66685.0,1.35069074]
[1721414094438,0.00074,66686.0,66685.0,1.35869074]
[1721414094652,0.00074,66686.0,66685.0,1.05877374]
[1721414095091,0.00074,66686.0,66685.0,1.05077374]
[1721414095312,0.00074,66686.0,66685.0,1.36469074]
[1721414095505,0.00074,66686.0,66685.0,1.37269074]
[1721414096162,0.00074,66686.0,66685.0,1.38669074]
[1721414098231,0.00074,66686.0,66685.0,1.38669074]
[1721414099563,0.00837,66695.0,66688.0,0.2999]
[1721414099893,0.00837,66695.0,66690.0,0.149945]
[1721414100097,0.00837,66695.0,66690.0,0.30432674]
[1721414101091,0.00837,66695.0,66691.0,0.149945]
[1721414101305,0.00837,66695.0,66692.0,0.149942]
[1721414101510,0.00837,66695.0,66693.0,0.149938]
[1721414101713,0.00837,66695.0,66692.0,0.00299851]
[1721414101714,0.00837,66695.0,66694.0,0.149938]
[1721414102339,0.00837,66695.0,66694.0,1.04547219]
[1721414102683,0.00837,66695.0,66694.0,1.34534919]
[1721414102891,0.00837,66695.0,66694.0,1.34235074]
[1721414103172,0.00837,66695.0,66694.0,1.34935074]
[1721414103505,0.00837,66695.0,66694.0,1.59935074]
[1721414104420,0.00837,66695.0,66694.0,1.73085179]
[1721414104966,0.00837,66695.0,66694.0,1.71685179]
[1721414105135,0.00837,66695.0,66694.0,1.73085179]
[1721414105342,0.00837,66695.0,66694.0,1.78085179]
[1721414105562,0.00837,66695.0,66694.0,2.08072879]
[1721414105704,0.00837,66695.0,66694.0,2.14874109]
[1721414105909,0.00837,66695.0,66694.0,2.20696756]
[1721414106318,0.00837,66695.0,66694.0,2.36256096]
[1721414106984,0.00836,66696.0,66695.0,1.59639952]
[1721414107154,0.00836,66696.0,66695.0,1.93752108]
[1721414107359,0.00836,66696.0,66695.0,2.05065326]
[1721414107581,0.00836,66696.0,66695.0,2.23736738]
[1721414107872,0.002,66699.0,66698.0,1.593065]
[1721414108016,0.002,66699.0,66698.0,1.87192152]
[1721414108220,0.002,66699.0,66698.0,1.88993002]
[1721414108422,0.002,66699.0,66698.0,1.87192152]
[1721414108623,0.002,66699.0,66698.0,1.88992965]
[1721414109029,0.0627,66722.0,66712.0,0.1437]
[1721414109030,0.05796675,66722.0,66712.0,0.1437]
[1721414109230,0.05796675,66722.0,66716.0,0.149888]
[1721414109231,0.46304871,66718.0,66716.0,0.149888]
[1721414109573,0.05796675,66722.0,66717.0,0.00177552]
[1721414109781,0.05796675,66722.0,66716.0,0.15166252]
[1721414111582,0.05796675,66722.0,66716.0,0.15266252]
[1721414112210,0.05796675,66722.0,66716.0,0.15366252]
[1721414112366,0.05796675,66722.0,66716.0,0.15266252]
[1721414112777,0.05796675,66722.0,66716.0,0.00377552]
[1721414112941,0.00101848,66721.0,66716.0,0.002]
[1721414113143,0.0664,66719.0,66716.0,0.002]
[1721414113507,0.0775,66718.0,66716.0,0.002]
[1721414114079,0.0775,66718.0,66716.0,0.001]
[1721414114484,0.0775,66718.0,66716.0,0.002]
[1721414115008,0.0775,66718.0,66706.0,0.00177552]
[1721414115306,0.0775,66718.0,66716.0,0.002]
[1721414115524,0.0621,66717.0,66716.0,0.001]
[1721414116053,0.0621,66717.0,66706.0,0.00177552]
[1721414116253,0.0621,66717.0,66707.0,0.12448297]
[1721414116468,0.0621,66717.0,66708.0,0.00177552]
[1721414116667,0.0801,66716.0,66706.0,0.00177552]
[1721414116913,0.0621,66715.0,66707.0,0.12448297]
[1721414117117,0.0621,66715.0,66708.0,0.00177552]
[1721414117286,0.0621,66715.0,66706.0,0.00277552]
[1721414117493,0.0621,66715.0,66707.0,0.12448016]
[1721414117662,0.0621,66715.0,66708.0,0.12625568]
[1721414117868,0.0621,66715.0,66709.0,0.12448016]
[1721414118070,0.0621,66715.0,66710.0,0.00177552]
[1721414118300,0.01091233,66722.0,66713.0,0.2348]
[1721414118301,0.0621,66719.0,66713.0,0.2348]
[1721414118529,0.0621,66719.0,66714.0,0.00177552]
[1721414119185,0.0801,66720.0,66714.0,0.00177552]
[1721414119806,0.0605,66727.0,66719.0,0.07717479]
[1721414120012,0.17119499,66727.0,66720.0,0.00177552]
[1721414121475,0.17119499,66727.0,66720.0,0.00277552]
[1721414121984,0.17119499,66727.0,66720.0,0.00377552]
[1721414122213,0.17119499,66727.0,66720.0,0.08095031]
[1721414122807,0.17119499,66727.0,66720.0,0.00377552]
[1721414123004,0.17119499,66727.0,66720.0,0.002]
[1721414123217,0.17119499,66727.0,66721.0,0.00177552]
[1721414124618,0.17119499,66727.0,66721.0,0.002]
[1721414126900,0.17119499,66727.0,66722.0,0.07717479]
[1721414127102,0.17119499,66727.0,66721.0,0.002]
[1721414127103,0.11069499,66727.0,66721.0,0.002]
[1721414127306,0.11069499,66727.0,66722.0,0.00177552]
[1721414127647,0.1,66726.0,66722.0,0.00177552]
[1721414127846,0.1,66726.0,66721.0,0.002]
[1721414127847,0.04268833,66723.0,66721.0,0.002]
[1721414128071,0.04268833,66723.0,66721.0,0.001]
[1721414128072,0.16468833,66722.0,66721.0,0.001]
[1721414128228,0.18768833,66722.0,66721.0,0.001]
[1721414128590,0.18768833,66722.0,66711.0,0.00177552]
[1721414128591,0.145,66721.0,66711.0,0.00177552]
[1721414128794,0.17508855,66720.0,66703.0,0.00177552]
[1721414128989,0.145,66718.0,66703.0,0.00177552]
[1721414129256,0.28870681,66717.0,66702.0,0.4753]
[1721414129470,0.0793,66715.0,66703.0,0.124499]
[1721414129593,0.0828,66712.0,66702.0,0.4753]
[1721414129797,0.02070681,66711.0,66702.0,0.4753]
[1721414129996,0.01969214,66710.0,66702.0,0.4753]
[1721414130238,0.00101848,66709.0,66702.0,0.4753]
[1721414130456,0.0196923,66708.0,66702.0,0.4753]
[1721414130610,0.00101848,66707.0,66696.0,0.15647479]
[1721414130811,0.01970417,66706.0,66697.0,0.12627655]
[1721414131037,0.01970417,66706.0,66698.0,0.12450103]
[1721414131038,0.0607,66703.0,66698.0,0.12450103]
[1721414131237,0.0607,66703.0,66686.0,0.001084]
[1721414131238,0.0828,66701.0,66686.0,0.001084]
[1721414131441,0.08142265,66700.0,66686.0,0.001084]
[1721414131792,0.08142265,66700.0,66687.0,0.00479026]
[1721414131793,0.1412,66697.0,66687.0,0.00479026]
[1721414131986,0.00101848,66698.0,66687.0,0.00479026]
[1721414131987,0.17408591,66696.0,66687.0,0.00479026]
[1721414132184,0.17408591,66696.0,66686.0,0.001084]
[1721414132185,0.22284848,66695.0,66686.0,0.001084]
[1721414132315,0.1922,66693.0,66686.0,0.001084]
[1721414132516,0.14372265,66692.0,66686.0,0.001084]
[1721414132723,0.01970417,66691.0,66686.0,0.001084]
[1721414132928,0.02401848,66690.0,66686.0,0.001084]
[1721414133126,0.0663,66687.0,66686.0,0.001084]
[1721414133332,0.24145475,66687.0,66686.0,0.001084]
[1721414133672,0.44243627,66687.0,66686.0,0.001084]
[1721414133890,0.44243627,66687.0,66686.0,0.002084]
[1721414133891,0.28805453,66687.0,66686.0,0.002084]
[1721414134454,0.29605453,66687.0,66686.0,0.002084]
[1721414134631,0.28805453,66687.0,66686.0,0.002084]
[1721414134840,0.27105453,66687.0,66686.0,0.002084]
[1721414135039,0.27105453,66687.0,66686.0,0.003084]
[1721414135040,0.27905453,66687.0,66686.0,0.003084]
[1721414135239,0.27905453,66687.0,66686.0,0.002084]
[1721414135240,0.27305453,66687.0,66686.0,0.002084]
[1721414135656,0.13375453,66687.0,66686.0,0.003084]
[1721414135858,0.014,66687.0,66686.0,0.003084]
[1721414136838,0.008,66687.0,66686.0,0.002084]
[1721414137048,0.00101848,66691.0,66686.0,0.001084]
[1721414137270,0.014,66687.0,66686.0,0.003084]
[1721414137682,0.008,66687.0,66686.0,0.002084]
[1721414137904,0.013,66687.0,66686.0,0.002084]
[1721414138202,0.029,66687.0,66686.0,0.002084]
[1721414138670,0.028,66687.0,66686.0,0.001084]
[1721414138887,0.023,66687.0,66686.0,0.001084]
[1721414139130,0.006,66687.0,66686.0,0.002084]
[1721414139358,0.029,66687.0,66686.0,0.002084]
[1721414140280,0.00101848,66690.0,66686.0,0.001084]
[1721414140516,0.02401848,66690.0,66686.0,0.001084]
[1721414140735,0.006,66687.0,66686.0,0.002084]
[1721414140966,0.011,66687.0,66686.0,0.002084]
[1721414141194,0.005,66687.0,66686.0,0.001084]
[1721414141387,0.016,66687.0,66686.0,0.002084]
[1721414141520,0.011,66687.0,66686.0,0.002084]
[1721414141794,0.011,66687.0,66686.0,0.001084]
[1721414141795,0.005,66687.0,66686.0,0.001084]
[1721414141995,0.033,66687.0,66686.0,0.001084]
[1721414142203,0.039,66687.0,66686.0,0.002084]
[1721414142580,0.029,66687.0,66686.0,0.002084]
[1721414143526,0.029,66687.0,66686.0,0.001084]
[1721414143527,0.17738174,66687.0,66686.0,0.001084]
[1721414144057,0.30821333,66687.0,66686.0,0.002084]
[1721414144261,0.42881333,66687.0,66686.0,0.001084]
[1721414144484,0.93877533,66687.0,66686.0,0.001084]
[1721414144690,0.93877533,66687.0,66686.0,0.00202361]
[1721414144691,1.24968333,66687.0,66686.0,0.00202361]
[1721414144895,1.96544435,66687.0,66686.0,0.00096862]
[1721414145098,1.96544435,66687.0,66665.0,0.00177552]
[1721414145099,0.1417,66679.0,66665.0,0.00177552]
[1721414145301,0.1417,66679.0,66658.0,0.146624]
[1721414145302,0.17738174,66678.0,66658.0,0.146624]
[1721414145519,0.1,66677.0,66659.0,0.00177552]
[1721414145737,0.1,66677.0,66659.0,0.00486688]
[1721414145738,0.17738174,66676.0,66659.0,0.00486688]
[1721414145939,0.17362074,66675.0,66659.0,0.00486688]
[1721414146137,0.023,66674.0,66659.0,0.00486688]
[1721414146693,0.023,66674.0,66664.0,0.07717479]
[1721414146909,0.25438174,66675.0,66664.0,0.07717479]
[1721414146910,0.1,66675.0,66671.0,0.07717479]
[1721414147334,0.0621,66682.0,66672.0,0.0005801]
[1721414147539,0.1,66682.0,66672.0,0.0005801]
[1721414147739,0.007,66674.0,66672.0,0.0005801]
[1721414148146,0.1,66682.0,66672.0,0.0005801]
[1721414148479,0.13875002,66682.0,66672.0,0.001]
[1721414148620,0.03875002,66682.0,66672.0,0.001]
[1721414149027,0.023,66681.0,66672.0,0.001]
[1721414149262,0.002,66674.0,66672.0,0.001]
[1721414149462,0.002,66674.0,66673.0,0.00483262]
[1721414150084,0.1456,66674.0,66673.0,0.00483262]
[1721414150308,0.1456,66674.0,66672.0,0.001]
[1721414150309,0.2456,66674.0,66672.0,0.001]
[1721414150488,0.1,66673.0,66662.0,0.1422]
[1721414150683,0.1,66673.0,66664.0,0.07717479]
[1721414150910,0.1,66673.0,66672.0,0.002]
[1721414151312,0.1,66673.0,66664.0,0.07717479]
[1721414151659,0.0633,66678.0,66665.0,0.00477546]
[1721414151660,0.002,66674.0,66665.0,0.00477546]
[1721414151864,0.004,66673.0,66665.0,0.0048522]
[1721414152294,0.1,66680.0,66665.0,0.0048522]